bitfinex-derivatives/quotes_ETHF0:USTF0_20230702
["timestamp","ask_amount","ask_price","bid_price","bid_amount"]
[1688256000936,0.3147435,1925.0,1924.9,0.31173]
[1688256006130,0.3147435,1925.0,1924.9,0.48571941]
[1688256006931,0.0030335,1925.0,1924.9,8.69351941]
[1688256007135,0.0030335,1925.0,1924.9,8.85651941]
[1688256007429,0.0030335,1925.0,1924.9,8.75251941]
[1688256007631,0.0030335,1925.0,1924.9,5.54471941]
[1688256020550,0.0030335,1925.0,1924.9,0.48571941]
[1688256023452,0.0030335,1925.0,1924.9,0.77243576]
[1688256033157,6.91869449,1925.2,1924.9,0.77243576]
[1688256033357,7.48617861,1925.2,1924.9,0.7001732]
[1688256034065,0.00293089,1925.1,1924.9,0.7001732]
[1688256035169,7.48617861,1925.2,1924.9,0.7001732]
[1688256036169,0.00293089,1925.1,1924.9,0.7001732]
[1688256037065,7.48617861,1925.2,1924.9,0.7001732]
[1688256038064,0.00293089,1925.1,1924.9,0.7001732]
[1688256038258,0.31464089,1925.1,1924.9,0.7001732]
[1688256038462,0.31464089,1925.1,1924.9,0.73683004]
[1688256038867,0.00293089,1925.1,1924.9,0.73683004]
[1688256039067,7.48617861,1925.2,1924.9,0.73683004]
[1688256039466,7.48617861,1925.2,1924.9,0.7001732]
[1688256040076,0.00293089,1925.1,1924.9,0.7001732]
[1688256040369,0.00293089,1925.1,1924.9,0.73683523]
[1688256041065,7.48617861,1925.2,1924.9,0.73683523]
[1688256041270,0.14427059,1925.0,1924.9,0.59844635]
[1688256041470,7.48617861,1925.2,1924.9,0.59844635]
[1688256042274,0.00293089,1925.1,1924.9,0.59844635]
[1688256042459,0.00293089,1925.1,1924.9,5.89064635]
[1688256042665,0.88212501,1925.1,1924.9,0.31173]
[1688256043163,4.08992501,1925.1,1924.9,0.31173]
[1688256043359,5.0252495,1925.1,1924.9,0.31173]
[1688256046876,1.8174495,1925.1,1924.9,0.31173]
[1688256047173,4.08992501,1925.1,1924.9,0.31173]
[1688256047376,5.0252495,1925.1,1924.9,0.31173]
[1688256056982,5.0252495,1925.1,1924.9,4.98973]
[1688256056983,9.7022495,1925.1,1924.9,4.98973]
[1688256057186,0.93532449,1925.0,1924.9,4.98973]
[1688256057380,1.24704449,1925.0,1924.9,4.98973]
[1688256058183,1.2499665,1925.0,1924.9,4.98973]
[1688256060187,1.2499665,1925.0,1924.9,5.27644635]
[1688256060789,1.2499665,1925.0,1924.9,4.98973]
[1688256061284,1.2499665,1925.0,1924.9,5.27644635]
[1688256063788,1.2499665,1925.0,1924.9,4.98973]
[1688256064780,1.2499665,1925.0,1924.8,1.20043258]
[1688256064781,5.9249665,1925.0,1924.8,1.20043258]
[1688256064981,11.1418665,1925.0,1924.8,1.20043258]
[1688256065193,0.93532449,1924.9,1924.8,1.20043258]
[1688256065390,1.24706449,1924.9,1924.8,1.20043258]
[1688256066092,1.24985977,1924.9,1924.8,1.20043258]
[1688256066782,1.24985977,1924.9,1924.8,0.42107258]
[1688256067186,1.24985977,1924.9,1924.7,14.89694261]
[1688256067489,1.24985977,1924.9,1924.7,15.31507001]
[1688256069784,1.24985977,1924.9,1924.8,0.28671635]
[1688256069989,1.24985977,1924.9,1924.8,0.59846635]
[1688256071295,1.24985977,1924.9,1924.8,0.31175]
[1688256076301,1.24985977,1924.9,1924.8,0.59846635]
[1688256077397,0.31453528,1924.9,1924.8,0.59846635]
[1688256081802,0.31453528,1924.9,1924.8,5.53882384]
[1688256089908,0.00279528,1924.9,1924.8,5.53882384]
[1688256090105,0.00279528,1924.9,1924.8,8.74662384]
[1688256118926,0.31453528,1924.9,1924.8,8.74662384]
[1688256122735,0.31453528,1924.9,1924.8,5.53882384]
[1688256132244,0.31453528,1924.9,1924.8,4.98975]
[1688256133353,0.31453528,1924.9,1924.8,5.27646635]
[1688256135147,0.31174,1924.9,1924.8,5.27646635]
[1688256138159,0.31174,1924.9,1924.8,8.48426635]
[1688256139052,0.31174,1924.9,1924.8,5.27646635]
[1688256155066,0.93532449,1925.0,1924.8,8.48426635]
[1688256155269,0.93532449,1925.0,1924.9,0.26235749]
[1688256155470,0.93532449,1925.0,1924.9,0.57409749]
[1688256157673,1.24704449,1925.0,1924.9,0.57409749]
[1688256157867,0.93532449,1925.0,1924.9,0.57409749]
[1688256159871,1.24704449,1925.0,1924.9,0.57409749]
[1688256162076,1.24704449,1925.0,1924.9,5.23009749]
[1688256166476,0.93532449,1925.0,1924.9,5.23009749]
[1688256167175,1.24704449,1925.0,1924.9,5.23009749]
[1688256169188,1.24704449,1925.0,1924.9,5.65499056]
[1688256169989,0.93532449,1925.0,1924.9,5.65499056]
[1688256170383,1.24704449,1925.0,1924.9,5.65499056]
[1688256177199,0.93532449,1925.0,1924.9,5.65499056]
[1688256177792,1.24704449,1925.0,1924.9,5.65499056]
[1688256179792,0.93532449,1925.0,1924.9,5.65499056]
[1688256180394,1.24704449,1925.0,1924.9,5.65499056]
[1688256181299,0.93532449,1925.0,1924.9,5.65499056]
[1688256181799,1.24704449,1925.0,1924.9,5.65499056]
[1688256182295,1.24704449,1925.0,1924.9,5.41463307]
[1688256187802,1.24704449,1925.0,1924.9,0.42489307]
[1688256187803,5.92504449,1925.0,1924.9,0.42489307]
[1688256188005,5.92504449,1925.0,1924.7,0.78718261]
[1688256188006,5.92504449,1925.0,1924.7,0.00779261]
[1688256188204,7.8858,1924.8,1924.4,1.03939]
[1688256188507,4.9888,1924.5,1924.4,1.03939]
[1688256188703,5.55628412,1924.5,1924.4,1.03939]
[1688256188907,6.49160861,1924.5,1924.4,1.03939]
[1688256189707,6.49160861,1924.5,1924.4,1.45567787]
[1688256192109,6.49160861,1924.5,1924.4,0.41628787]
[1688256192411,6.49160861,1924.5,1924.3,0.31962443]
[1688256192708,4.675,1924.4,1924.3,0.31962443]
[1688256192911,4.98682,1924.4,1924.3,0.31962443]
[1688256193599,8.19462,1924.4,1924.3,0.41903646]
[1688256193805,8.19462,1924.4,1924.3,0.31963443]
[1688256194499,4.98682,1924.4,1924.3,0.31963443]
[1688256196410,0.31182,1924.4,1924.3,0.31963443]
[1688256199007,0.31182,1924.4,1924.3,0.60635078]
[1688256200211,0.31182,1924.4,1924.3,0.31963443]
[1688256200510,0.31182,1924.4,1924.3,0.60635078]
[1688256201713,0.77956,1924.5,1924.3,5.28435078]
[1688256202008,0.31181,1924.5,1924.4,0.57417749]
[1688256202204,0.77951,1924.6,1924.4,8.45997749]
[1688256202404,0.77951,1924.6,1924.5,0.28671635]
[1688256202918,0.77951,1924.6,1924.5,0.59851635]
[1688256203405,0.77951,1924.6,1924.5,1.01623463]
[1688256204515,0.31179,1924.6,1924.5,1.01623463]
[1688256206115,0.31179,1924.6,1924.5,5.67223463]
[1688256214116,0.31179,1924.6,1924.5,6.0978869]
[1688256220119,0.31179,1924.6,1924.5,1.15517055]
[1688256220326,0.31179,1924.6,1924.5,5.83317055]
[1688256222525,0.31179,1924.6,1924.5,5.52137055]
[1688256222726,4.98879,1924.6,1924.5,0.41771828]
[1688256223030,4.98879,1924.6,1924.5,0.31179]
[1688256223233,4.98879,1924.6,1924.5,0.7295819]
[1688256224722,0.31179,1924.6,1924.5,0.7295819]
[1688256225033,0.31179,1924.6,1924.5,1.01629825]
[1688256226034,0.31179,1924.6,1924.5,0.7295819]
[1688256226731,0.31179,1924.6,1924.5,1.01629825]
[1688256228426,4.9898,1924.7,1924.5,1.01629825]
[1688256228626,4.9898,1924.7,1924.5,1.27865574]
[1688256228831,5.92531909,1924.7,1924.5,1.27865574]
[1688256231341,5.92531909,1924.7,1924.5,0.7295619]
[1688256231533,11.03081909,1924.7,1924.5,0.7295619]
[1688256231735,1.50300321,1924.6,1924.5,0.7295619]
[1688256231933,1.81477321,1924.6,1924.5,0.7295619]
[1688256233842,1.81477321,1924.6,1924.5,1.01627825]
[1688256237153,1.24728909,1924.6,1924.5,1.01627825]
[1688256240856,1.24728909,1924.6,1924.5,0.7295619]
[1688256241763,1.24728909,1924.6,1924.5,1.01627825]
[1688256242260,1.24728909,1924.6,1924.5,5.69427825]
[1688256242458,0.31177,1924.6,1924.5,5.69427825]
[1688256243350,1.24731909,1924.7,1924.5,5.69427825]
[1688256243953,1.24731909,1924.7,1924.6,0.26235749]
[1688256244158,1.24731909,1924.7,1924.6,0.99199772]
[1688256245059,1.24731909,1924.7,1924.6,5.66999772]
[1688256245361,0.3118,1924.7,1924.6,5.66999772]
[1688256252562,0.3118,1924.7,1924.6,5.40764023]
[1688256252771,0.3118,1924.7,1924.6,5.09587023]
[1688256255972,0.3118,1924.7,1924.6,5.38258658]
[1688256256974,0.3118,1924.7,1924.6,5.09587023]
[1688256258370,3.5196,1924.7,1924.6,5.09587023]
[1688256258675,4.45511909,1924.7,1924.6,5.09587023]
[1688256259469,4.45511909,1924.7,1924.6,5.40764023]
[1688256259667,4.45511909,1924.7,1924.6,5.09587023]
[1688256261181,9.13311909,1924.7,1924.6,0.41787023]
[1688256261575,9.13311909,1924.7,1924.6,0.31177]
[1688256261877,9.13311909,1924.7,1924.6,0.7297056]
[1688256267583,10.70050708,1924.7,1924.6,0.7297056]
[1688256269287,10.70050708,1924.7,1924.6,0.4179356]
[1688256269479,10.70050708,1924.7,1924.4,5.37472971]
[1688256269675,1.81477321,1924.6,1924.5,0.72975529]
[1688256275388,1.24728909,1924.6,1924.5,1.01647164]
[1688256278493,1.24728909,1924.6,1924.5,0.72975529]
[1688256281592,1.66717758,1924.6,1924.5,1.01647164]
[1688256282089,1.66717758,1924.6,1924.5,0.72975529]
[1688256284700,6.34517758,1924.6,1924.5,0.41796529]
[1688256290001,6.34517758,1924.6,1924.4,0.3118]
[1688256290200,6.34517758,1924.6,1924.5,0.41804221]
[1688256291495,6.34517758,1924.6,1924.3,10.36333733]
[1688256291696,11.18857758,1924.6,1924.4,0.41804787]
[1688256291895,1.24728909,1924.5,1924.4,0.41804787]
[1688256292106,5.92528909,1924.5,1924.3,10.36333733]
[1688256292308,5.92528909,1924.5,1924.4,0.41804966]
[1688256292499,5.92528909,1924.5,1924.4,0.3118]
[1688256292804,5.92528909,1924.5,1924.4,0.72985161]
[1688256293708,9.13308909,1924.5,1924.4,0.41805161]
[1688256293904,9.70057321,1924.5,1924.4,0.41805161]
[1688256294103,9.70057321,1924.5,1924.3,10.36333733]
[1688256294306,0.93551909,1924.4,1924.3,10.36333733]
[1688256294509,1.24731909,1924.4,1924.3,10.05151733]
[1688256296410,1.24731909,1924.4,1924.3,10.36333733]
[1688256298807,1.24731909,1924.4,1924.3,10.05151733]
[1688256299110,1.24731909,1924.4,1924.3,10.36333733]
[1688256299808,1.24731909,1924.4,1924.3,10.05151733]
[1688256300409,1.24731909,1924.4,1924.3,10.36333733]
[1688256301511,1.24731909,1924.4,1924.3,10.05151733]
[1688256302106,1.24731909,1924.4,1924.3,5.39551733]
[1688256305013,1.24731909,1924.4,1924.3,0.41461733]
[1688256305014,5.92531909,1924.4,1924.3,0.41461733]
[1688256305208,5.92531909,1924.4,1924.3,0.00779443]
[1688256305418,10.84961909,1924.4,1924.3,0.00779443]
[1688256305718,10.84961909,1924.4,1924.3,0.49219788]
[1688256307715,11.27141743,1924.4,1924.3,0.49219788]
[1688256308214,11.27141743,1924.4,1924.3,0.48794391]
[1688256308719,0.31183,1924.2,1923.8,5.2943]
[1688256308914,4.98988,1923.9,1923.8,5.2943]
[1688256309319,4.98988,1923.9,1923.8,5.71212096]
[1688256309620,5.55736412,1923.9,1923.8,5.71212096]
[1688256320122,5.55736412,1923.9,1923.8,0.41782096]
[1688256320525,5.55736412,1923.9,1923.7,0.00779687]
[1688256320829,7.8828,1923.8,1923.7,0.43309024]
[1688256321017,8.1947,1923.8,1923.7,0.00779687]
[1688256323531,8.1947,1923.8,1923.7,0.55937609]
[1688256323723,4.9869,1923.8,1923.7,0.55937609]
[1688256324033,4.9869,1923.8,1923.7,0.87129609]
[1688256327332,4.9869,1923.8,1923.7,0.55937609]
[1688256332226,4.9899,1923.8,1923.7,0.55937609]
[1688256336634,5.40837004,1923.8,1923.7,0.55937609]
[1688256344343,5.40837004,1923.8,1923.7,0.87129609]
[1688256344841,5.40837004,1923.8,1923.7,0.55937609]
[1688256347748,5.40837004,1923.8,1923.7,0.87129609]
[1688256350938,6.34426749,1923.8,1923.7,0.87129609]
[1688256357854,6.34426749,1923.8,1923.7,0.55937609]
[1688256358156,6.34426749,1923.8,1923.7,0.87129609]
[1688256365449,6.34426749,1923.8,1923.7,1.15801244]
[1688256365647,6.34426749,1923.8,1923.7,0.87129609]
[1688256370757,6.34426749,1923.8,1923.7,0.55937609]
[1688256373468,6.34426749,1923.8,1923.7,0.00779687]
[1688256374361,6.34426749,1923.8,1923.7,0.53576565]
[1688256375768,6.34426749,1923.8,1923.7,0.00779687]
[1688256376668,6.34426749,1923.8,1923.7,0.53577812]
[1688256376875,6.34426749,1923.8,1923.7,0.00779687]
[1688256377073,6.34426749,1923.8,1923.7,0.53578067]
[1688256381576,6.34426749,1923.8,1923.7,0.52777912]
[1688256381772,4.636,1923.7,1923.5,0.41814806]
[1688256382076,8.19673,1923.6,1923.3,4.9365]
[1688256382277,4.98996,1923.4,1923.3,4.9365]
[1688256382476,4.98996,1923.4,1923.3,5.36146571]
[1688256383279,4.98996,1923.4,1923.3,5.88943261]
[1688256384676,8.76524412,1923.4,1923.3,5.88943261]
[1688256384982,9.70131773,1923.4,1923.3,5.88943261]
[1688256386581,8.76524412,1923.4,1923.3,5.88943261]
[1688256390985,5.55744412,1923.4,1923.3,5.88943261]
[1688256392787,5.55744412,1923.4,1923.3,6.20141261]
[1688256394386,5.98247023,1923.4,1923.3,6.20141261]
[1688256395785,5.98247023,1923.4,1923.3,5.88943261]
[1688256396003,9.19027023,1923.4,1923.3,5.88943261]
[1688256400890,5.98247023,1923.4,1923.3,5.88943261]
[1688256401096,6.91862999,1923.4,1923.3,5.88943261]
[1688256407007,6.91862999,1923.4,1923.3,6.20141261]
[1688256407291,6.35114587,1923.4,1923.3,6.48812896]
[1688256407595,6.35114587,1923.4,1923.3,6.20141261]
[1688256411006,6.35114587,1923.4,1923.3,6.48812896]
[1688256412798,6.35114587,1923.4,1923.3,6.20141261]
[1688256423599,6.35114587,1923.4,1923.3,6.48812896]
[1688256424303,6.35114587,1923.4,1923.3,6.20141261]
[1688256427913,6.35114587,1923.4,1923.3,6.48812896]
[1688256428610,0.42502611,1923.4,1923.3,11.14412896]
[1688256428904,0.31194,1923.5,1923.3,11.14412896]
[1688256429106,0.77987,1923.6,1923.5,0.31195]
[1688256429311,0.77987,1923.6,1923.5,5.57654542]
[1688256430915,0.77987,1923.6,1923.5,0.89854542]
[1688256431213,0.77987,1923.6,1923.5,0.61182907]
[1688256431807,0.77987,1923.6,1923.5,0.89854542]
[1688256432203,0.77987,1923.6,1923.5,5.57654542]
[1688256432606,1.81558388,1923.7,1923.5,5.68054542]
[1688256432812,0.3119,1923.8,1923.6,8.14815749]
[1688256433004,0.3119,1923.8,1923.7,0.8631173]
[1688256434314,4.9869,1923.8,1923.7,0.57640095]
[1688256434706,5.92305976,1923.8,1923.7,0.57640095]
[1688256435218,5.92305976,1923.8,1923.7,0.8631173]
[1688256436811,5.92305976,1923.8,1923.7,0.57640095]
[1688256440118,5.92305976,1923.8,1923.7,0.8631173]
[1688256443529,5.92305976,1923.8,1923.7,0.57640095]
[1688256443931,5.92305976,1923.8,1923.7,0.8631173]
[1688256446133,5.92305976,1923.8,1923.7,0.57640095]
[1688256450133,5.92305976,1923.8,1923.7,0.8631173]
[1688256456035,5.92505976,1923.8,1923.7,0.8631173]
[1688256457338,5.92505976,1923.8,1923.7,0.57640095]
[1688256462642,5.92505976,1923.8,1923.7,0.8631173]
[1688256463044,5.92505976,1923.8,1923.7,0.57640095]
[1688256467348,5.92305976,1923.8,1923.7,0.26448095]
[1688256467546,5.92305976,1923.8,1923.6,0.31193]
[1688256467843,5.55739412,1923.7,1923.6,0.31193]
[1688256468348,5.55739412,1923.7,1923.6,0.59864635]
[1688256468349,4.98991,1923.7,1923.6,0.59864635]
[1688256468542,0.31191,1923.7,1923.6,3.80644635]
[1688256469948,0.31191,1923.7,1923.6,3.51973]
[1688256470144,0.31191,1923.7,1923.6,3.80644635]
[1688256472040,0.31191,1923.7,1923.6,8.48444635]
[1688256473348,0.31191,1923.7,1923.6,8.74913328]
[1688256474146,5.61315976,1923.8,1923.6,8.74913328]
[1688256474346,4.9889,1923.8,1923.7,0.26235749]
[1688256474539,4.9889,1923.8,1923.7,0.83896044]
[1688256476255,4.677,1923.8,1923.7,0.83896044]
[1688256476460,0.94395663,1924.0,1923.7,5.49496044]
[1688256476657,0.00779687,1924.0,1923.9,7.8638]
[1688256476962,0.31966687,1924.0,1923.9,8.43803749]
[1688256477259,0.00779687,1924.0,1923.9,8.43803749]
[1688256478559,0.31966687,1924.0,1923.9,8.43803749]
[1688256480858,0.00779687,1924.0,1923.9,8.43803749]
[1688256481152,0.31966687,1924.0,1923.9,8.43803749]
[1688256482159,0.00779687,1924.0,1923.9,8.43803749]
[1688256482561,0.00779687,1924.0,1923.9,8.46003749]
[1688256482956,0.00779687,1924.0,1923.9,13.30233749]
[1688256487773,0.31964687,1924.0,1923.9,13.30233749]
[1688256489076,0.00779687,1924.0,1923.9,13.30233749]
[1688256495879,0.31964687,1924.0,1923.9,13.30233749]
[1688256498583,0.00779687,1924.0,1923.9,13.30233749]
[1688256503584,0.31964687,1924.0,1923.9,13.30233749]
[1688256504787,0.00779687,1924.0,1923.9,13.30233749]
[1688256506287,0.31964687,1924.0,1923.9,13.30233749]
[1688256517591,0.31964687,1924.0,1923.9,8.19768]
[1688256518179,0.31964687,1924.0,1923.9,4.98988]
[1688256522187,4.99764687,1924.0,1923.9,0.31188]
[1688256522389,5.93380663,1924.0,1923.9,0.31188]
[1688256529984,6.35413478,1924.0,1923.9,0.31188]
[1688256532991,5.62195663,1924.0,1923.9,0.31188]
[1688256533196,0.94395663,1924.0,1923.9,5.27659635]
[1688256533393,0.00779687,1924.0,1923.9,5.27659635]
[1688256533888,0.00779687,1924.0,1923.9,10.43939635]
[1688256534393,0.31964687,1924.0,1923.9,10.43939635]
[1688256536588,0.00779687,1924.0,1923.9,10.43939635]
[1688256540498,0.00779687,1924.0,1923.9,10.54339635]
[1688256541302,0.00779687,1924.0,1923.9,15.55999635]
[1688256547306,0.00779687,1924.0,1923.9,15.98391616]
[1688256555422,0.00779687,1924.0,1923.9,15.87991616]
[1688256587655,0.93615976,1924.2,1924.0,0.26235749]
[1688256587958,0.93526,1924.7,1924.2,4.678]
[1688256587959,10.4285,1924.5,1924.2,4.678]
[1688256588159,10.4285,1924.5,1924.4,7.8858]
[1688256588353,11.36414231,1924.5,1924.4,8.48430635]
[1688256589754,11.67591231,1924.5,1924.4,8.48430635]
[1688256590158,11.67591231,1924.5,1924.4,8.19759]
[1688256590344,11.67591231,1924.5,1924.4,8.48430635]
[1688256593551,11.92437152,1924.5,1924.4,8.48430635]
[1688256599267,11.92437152,1924.5,1924.4,8.89545245]
[1688256605970,11.85552725,1924.5,1924.4,8.89545245]
[1688256617874,6.65402725,1924.5,1924.4,8.89545245]
[1688256618074,5.71838494,1924.5,1924.4,8.89545245]
[1688256636392,10.39538494,1924.5,1924.3,0.00779443]
[1688256636598,9.38892643,1924.4,1924.0,0.31181]
[1688256636888,4.98683,1924.1,1924.0,0.31181]
[1688256637078,4.98683,1924.1,1924.0,0.4033947]
[1688256637079,5.55431412,1924.1,1924.0,0.4033947]
[1688256637477,6.48995643,1924.1,1924.0,0.4033947]
[1688256638389,6.48995643,1924.1,1924.0,0.0915847]
[1688256638592,6.48995643,1924.1,1924.0,0.4034347]
[1688256640791,6.75266887,1924.1,1924.0,0.31185]
[1688256641295,6.75266887,1924.1,1923.9,5.46533606]
[1688256641296,6.75266887,1924.1,1923.9,0.00779606]
[1688256641595,7.8828,1924.0,1923.9,0.00779606]
[1688256641897,9.13029231,1924.0,1923.9,0.00779606]
[1688256644282,9.13029231,1924.0,1923.9,0.31966606]
[1688256645195,9.13029231,1924.0,1923.9,0.00779606]
[1688256645592,5.92249231,1924.0,1923.9,0.00779606]
[1688256645895,8.19465,1924.0,1923.9,0.00779606]
[1688256646089,9.13029231,1924.0,1923.9,0.00779606]
[1688256647796,19.53969231,1924.0,1923.9,0.00779606]
[1688256648092,19.53969231,1924.0,1923.9,0.19802287]
[1688256648292,14.35859231,1924.0,1923.9,0.00779606]
[1688256648496,14.35859231,1924.0,1923.9,0.1980256]
[1688256648497,19.53969231,1924.0,1923.9,0.1980256]
[1688256648695,14.35859231,1924.0,1923.9,0.1980256]
[1688256652895,14.77919845,1924.0,1923.9,0.1980256]
[1688256662007,14.77919845,1924.0,1923.6,5.25741]
[1688256662008,19.43819845,1924.0,1923.6,5.25741]
[1688256662212,9.314,1923.7,1923.6,4.9455]
[1688256662408,9.6259,1923.7,1923.6,4.9455]
[1688256662822,10.19338412,1923.7,1923.6,4.9455]
[1688256663004,10.19338412,1923.7,1923.6,5.15855926]
[1688256673526,5.0,1923.6,1922.9,0.77995]
[1688256673728,4.678,1923.0,1922.9,10.62595]
[1688256673926,5.55749412,1923.0,1922.9,10.62595]
[1688256676827,5.55749412,1923.0,1922.9,11.01666635]
[1688256677033,4.99001,1923.0,1922.9,11.01666635]
[1688256677323,4.99001,1923.0,1922.9,10.72995]
[1688256680430,4.99001,1923.0,1922.9,10.62595]
[1688256681233,4.99001,1923.0,1922.9,11.14231169]
[1688256684236,4.99001,1923.0,1922.9,10.36236169]
[1688256688039,4.99001,1923.0,1922.9,5.43936169]
[1688256695143,4.99001,1923.0,1922.9,5.72607804]
[1688256695342,4.99001,1923.0,1922.9,5.43936169]
[1688256697054,4.99001,1923.0,1922.9,5.75139169]
[1688256697257,4.99001,1923.0,1922.9,6.03810804]
[1688256697945,4.99001,1923.0,1922.9,5.75139169]
[1688256698551,4.99001,1923.0,1922.9,6.03810804]
[1688256700348,4.99001,1923.0,1922.9,5.75139169]
[1688256701749,4.99001,1923.0,1922.9,6.03810804]
[1688256702649,4.99001,1923.0,1922.9,5.75139169]
[1688256702855,4.99001,1923.0,1922.9,6.03810804]
[1688256703755,4.99001,1923.0,1922.9,5.75139169]
[1688256704158,4.99001,1923.0,1922.9,6.03810804]
[1688256704962,4.99001,1923.0,1922.9,5.75139169]
[1688256705658,4.99001,1923.0,1922.9,6.03810804]
[1688256706460,4.99001,1923.0,1922.9,5.75139169]
[1688256708661,4.99001,1923.0,1922.9,6.03810804]
[1688256709761,4.99001,1923.0,1922.9,5.75139169]
[1688256709964,4.99001,1923.0,1922.9,6.03810804]
[1688256714782,4.99001,1923.0,1922.9,5.75139169]
[1688256715665,4.99001,1923.0,1922.9,6.03810804]
[1688256720369,4.99001,1923.0,1922.9,5.75139169]
[1688256720772,4.99001,1923.0,1922.9,6.03810804]
[1688256722391,4.99001,1923.0,1922.9,5.75139169]
[1688256727093,4.99001,1923.0,1922.9,0.82839169]
[1688256731283,5.92555822,1923.0,1922.9,0.82839169]
[1688256732391,9.13335822,1923.0,1922.9,0.51636169]
[1688256732586,9.13335822,1923.0,1922.9,0.33403331]
[1688256732881,9.13335822,1923.0,1922.8,0.31204]
[1688256733095,4.45535822,1923.0,1922.9,0.33403705]
[1688256733280,9.13335822,1923.0,1922.8,0.31204]
[1688256733485,4.98903,1922.9,1922.8,0.31204]
[1688256733702,5.92457822,1922.9,1922.8,0.31204]
[1688256733886,6.49206234,1922.9,1922.8,0.31204]
[1688256738003,6.49206234,1922.9,1922.8,0.33407383]
[1688256739692,6.49206234,1922.9,1922.8,0.33408675]
[1688256739996,6.49206234,1922.9,1922.6,0.31205]
[1688256740196,4.98706,1922.7,1922.6,0.31205]
[1688256740389,5.55454412,1922.7,1922.6,0.31205]
[1688256740588,6.49009234,1922.7,1922.6,0.31205]
[1688256745998,6.49009234,1922.7,1922.5,6.00182]
[1688256746306,4.678,1922.6,1922.5,6.00182]
[1688256746610,4.99008,1922.6,1922.5,5.0656]
[1688256746790,4.99008,1922.6,1922.4,5.84833723]
[1688256746997,5.55757412,1922.5,1922.4,5.84833723]
[1688256747187,5.55757412,1922.5,1922.4,6.15285511]
[1688256748199,5.55757412,1922.5,1922.4,5.74051788]
[1688256752114,10.22157412,1922.5,1922.4,5.74051788]
[1688256755108,10.22157412,1922.5,1922.4,8.94831788]
[1688256755312,10.22157412,1922.5,1922.4,5.74051788]
[1688256755507,10.22157412,1922.5,1922.4,8.94831788]
[1688256758819,10.22157412,1922.5,1922.4,0.30451788]
[1688256759107,11.15675834,1922.5,1922.4,0.30451788]
[1688256762015,10.22157412,1922.5,1922.4,0.30451788]
[1688256762811,10.62773504,1922.5,1922.4,0.30451788]
[1688256763508,11.56291867,1922.5,1922.4,0.30451788]
[1688256764109,11.56291867,1922.5,1922.4,0.61662788]
[1688256767416,11.56291867,1922.5,1922.4,0.30451788]
[1688256771133,11.56291867,1922.5,1922.4,0.61662788]
[1688256775812,10.99543455,1922.5,1922.4,0.90334423]
[1688256776845,6.01934455,1922.5,1922.4,4.11114423]
[1688256777022,5.08416092,1922.5,1922.4,4.11114423]
[1688256777219,4.678,1922.5,1922.4,4.11114423]
[1688256778025,4.99009,1922.5,1922.4,4.11114423]
[1688256787028,4.99009,1922.5,1922.4,0.90334423]
[1688256787425,4.99009,1922.5,1922.4,0.61662788]
[1688256787929,4.99009,1922.5,1922.4,0.90334423]
[1688256788730,4.99009,1922.5,1922.4,0.61662788]
[1688256789125,4.86575684,1922.5,1922.4,0.90334423]
[1688256790337,4.86575684,1922.5,1922.4,0.61662788]
[1688256790632,9.54375684,1922.5,1922.4,0.61662788]
[1688256790926,10.47894047,1922.5,1922.4,0.61662788]
[1688256802842,10.47894047,1922.5,1922.4,0.90334423]
[1688256803038,10.47894047,1922.5,1922.4,5.65432788]
[1688256804347,10.47894047,1922.5,1922.4,5.94104423]
[1688256809241,10.47894047,1922.5,1922.4,5.65432788]
[1688256809950,10.16685047,1922.5,1922.4,9.14884423]
[1688256810141,5.48885047,1922.5,1922.4,9.14884423]
[1688256810346,4.55366684,1922.5,1922.4,9.14884423]
[1688256813259,4.86577684,1922.5,1922.4,9.14884423]
[1688256819858,4.86577684,1922.5,1922.4,8.86212788]
[1688256820057,4.86577684,1922.5,1922.4,9.14884423]
[1688256821066,4.86577684,1922.5,1922.4,5.65432788]
[1688256822055,5.80096047,1922.5,1922.4,5.65432788]
[1688256824562,5.80096047,1922.5,1922.4,5.94104423]
[1688256826161,10.46496047,1922.5,1922.4,5.94104423]
[1688256827365,10.46496047,1922.5,1922.4,5.65432788]
[1688256831659,5.48885047,1922.5,1922.4,9.14884423]
[1688256831963,4.55366684,1922.5,1922.4,9.14884423]
[1688256834265,4.86577684,1922.5,1922.4,9.14884423]
[1688256836159,4.86577684,1922.5,1922.4,5.94104423]
[1688256837367,4.55366684,1922.5,1922.4,9.14884423]
[1688256838971,4.86577684,1922.5,1922.4,9.14884423]
[1688256840955,4.55366684,1922.5,1922.4,9.14884423]
[1688256841871,4.86577684,1922.5,1922.4,9.14884423]
[1688256842468,4.55366684,1922.5,1922.4,9.14884423]
[1688256844365,4.55366684,1922.5,1922.4,9.56614018]
[1688256844767,4.86577684,1922.5,1922.4,9.56614018]
[1688256846371,4.86577684,1922.5,1922.4,9.27942383]
[1688256846568,4.86577684,1922.5,1922.4,8.86212788]
[1688256847970,4.86577684,1922.5,1922.4,9.14884423]
[1688256848867,4.86577684,1922.5,1922.4,5.94104423]
[1688256853471,4.86577684,1922.5,1922.4,5.65432788]
[1688256856673,4.86577684,1922.5,1922.4,5.94104423]
[1688256857377,4.86577684,1922.5,1922.4,5.65432788]
[1688256860284,4.86577684,1922.5,1922.4,5.94104423]
[1688256860871,4.86577684,1922.5,1922.4,5.65432788]
[1688256861088,4.86577684,1922.5,1922.4,0.61662788]
[1688256861276,5.80096047,1922.5,1922.4,0.61662788]
[1688256862773,10.47896047,1922.5,1922.4,0.30451788]
[1688256862974,0.56748412,1922.4,1922.2,0.31216]
[1688256863179,8.19695,1922.3,1922.2,0.31216]
[1688256863378,9.13213363,1922.3,1922.2,0.31216]
[1688256863572,9.13213363,1922.3,1922.2,0.78746342]
[1688256864485,9.13213363,1922.3,1922.2,0.47530342]
[1688256864879,9.13213363,1922.3,1922.0,0.78043]
[1688256865195,4.677,1922.1,1922.0,0.78043]
[1688256865417,4.677,1922.1,1921.6,2.34334885]
[1688256865418,4.659,1922.0,1921.6,2.34334885]
[1688256865623,7.8858,1921.7,1921.6,0.78053]
[1688256865857,8.19805,1921.7,1921.4,0.93683]
[1688256866129,7.8828,1921.5,1921.4,0.93683]
[1688256866414,8.19508,1921.5,1921.4,0.93683]
[1688256866599,9.13026363,1921.5,1921.4,0.93683]
[1688256866780,8.19508,1921.5,1921.4,0.93683]
[1688256868279,4.98728,1921.5,1921.4,0.93683]
[1688256869578,4.675,1921.5,1921.4,1.22354635]
[1688256869783,4.675,1921.5,1921.4,4.43134635]
[1688256869981,4.675,1921.5,1921.4,9.47704635]
[1688256870577,4.675,1921.5,1921.4,10.53098333]
[1688256875886,4.98727,1921.5,1921.4,10.53098333]
[1688256876090,4.98727,1921.5,1921.4,7.32318333]
[1688256876388,4.98727,1921.5,1921.4,7.03646698]
[1688256876888,4.98727,1921.5,1921.4,7.32318333]